[Event "January 2 Early 2024"]
[Site "https://www.chess.com"]
[Date "2024.01.02"]
[Round "6"]
[White "Onslow, Alfie"]
[Black "Srebrnic, Marko"]
[Result "0-1"]
[Board "145"]
[TimeControl "180+1"]
[WhiteFideId "436976"]
[BlackFideId "14603616"]
[WhiteElo "2293"]
[BlackElo "2476"]
[WhiteTeam "ENG"]
[BlackTeam "SLO"]
[WhiteClock "0:00:00"]
[BlackClock "0:00:20"]

1. e4 {[%clk 0:03:00]}  c5 {[%clk 0:02:47]} 2. Nc3 {[%clk 0:03:00]}  Nc6 {[%clk 0:02:47]} 3. Bb5 {[%clk 0:02:59]}  Qc7 {[%clk 0:02:44]} 4. Nf3 {[%clk 0:02:49]}  e6 {[%clk 0:02:38]} 5. O-O {[%clk 0:02:40]}  Nf6 {[%clk 0:02:32]} 6. Bxc6 {[%clk 0:02:30]}  Qxc6 {[%clk 0:02:33]} 7. d4 {[%clk 0:02:30]}  Nxe4 {[%clk 0:02:10]} 8. Nxe4 {[%clk 0:02:07]}  Qxe4 {[%clk 0:02:08]} 9. Re1 {[%clk 0:02:08]}  Qg4 {[%clk 0:01:58]} 10. d5 {[%clk 0:01:58]}  Be7 {[%clk 0:01:44]} 11. Be3 {[%clk 0:01:50]}  b6 {[%clk 0:01:36]} 12. h3 {[%clk 0:01:50]}  Qh5 {[%clk 0:01:35]} 13. c4 {[%clk 0:01:33]}  O-O {[%clk 0:01:25]} 14. Qd2 {[%clk 0:00:46]}  Bf6 {[%clk 0:01:18]} 15. Rad1 {[%clk 0:00:41]}  exd5 {[%clk 0:01:14]} 16. cxd5 {[%clk 0:00:39]}  d6 {[%clk 0:01:13]} 17. Bf4 {[%clk 0:00:39]}  Bxh3 {[%clk 0:01:09]} 18. gxh3 {[%clk 0:00:16]}  Qxf3 {[%clk 0:01:07]} 19. Bxd6 {[%clk 0:00:17]}  Rfe8 {[%clk 0:01:01]} 20. Bg3 {[%clk 0:00:12]}  Bd4 {[%clk 0:00:59]} 21. Kh2 {[%clk 0:00:10]}  Qxd5 {[%clk 0:00:57]} 22. Rxe8+ {[%clk 0:00:04]}  Rxe8 {[%clk 0:00:58]} 23. Qf4 {[%clk 0:00:05]}  g6 {[%clk 0:00:54]} 24. b3 {[%clk 0:00:04]}  h5 {[%clk 0:00:54]} 25. Bh4 {[%clk 0:00:04]}  Re4 {[%clk 0:00:41]} 26. Qb8+ {[%clk 0:00:04]}  Kg7 {[%clk 0:00:39]} 27. Bg3 {[%clk 0:00:04]}  h4 {[%clk 0:00:33]} 28. Bd6 {[%clk 0:00:04]}  Qf5 {[%clk 0:00:25]} 29. Qf8+ {[%clk 0:00:04]}  Kh7 {[%clk 0:00:24]} 30. Rd2 {[%clk 0:00:03]}  Be5+ {[%clk 0:00:19]} 31. Bxe5 {[%clk 0:00:02]}  Rxe5 {[%clk 0:00:19]} 32. Qd8 {[%clk 0:00:01]}  Qf4+ {[%clk 0:00:19]} 33. Kg2 {[%clk 0:00:00]}  Rg5+ {[%clk 0:00:20]} 0-1

[Event "January 2 Early 2024"]
[Site "https://www.chess.com"]
[Date "2024.01.02"]
[Round "6"]
[White "Player, Edmund C"]
[Black "Azali, Tannaz"]
[Result "0-1"]
[Board "147"]
[TimeControl "180+1"]
[WhiteFideId "406520"]
[BlackFideId "12537721"]
[WhiteElo "2278"]
[BlackElo "2474"]
[WhiteTeam "ENG"]
[BlackTeam "IRI"]
[WhiteClock "0:00:00"]
[BlackClock "0:00:24"]

1. Nc3 {[%clk 0:03:00]}  Nf6 {[%clk 0:02:59]} 2. e4 {[%clk 0:02:59]}  d6 {[%clk 0:02:58]} 3. d4 {[%clk 0:02:59]}  Nbd7 {[%clk 0:02:58]} 4. Nf3 {[%clk 0:02:54]}  g6 {[%clk 0:02:59]} 5. Bg5 {[%clk 0:02:51]}  Bg7 {[%clk 0:02:59]} 6. Qd2 {[%clk 0:02:51]}  O-O {[%clk 0:02:53]} 7. Bh6 {[%clk 0:02:50]}  c6 {[%clk 0:02:48]} 8. h4 {[%clk 0:02:41]}  b5 {[%clk 0:02:46]} 9. h5 {[%clk 0:02:39]}  Ng4 {[%clk 0:02:12]} 10. Bxg7 {[%clk 0:02:24]}  Kxg7 {[%clk 0:02:13]} 11. Qg5 {[%clk 0:01:39]}  Ndf6 {[%clk 0:01:55]} 12. e5 {[%clk 0:01:23]}  dxe5 {[%clk 0:01:50]} 13. dxe5 {[%clk 0:01:23]}  b4 {[%clk 0:01:32]} 14. exf6+ {[%clk 0:01:00]}  exf6 {[%clk 0:01:32]} 15. Qc5 {[%clk 0:01:00]}  bxc3 {[%clk 0:01:32]} 16. Qxc3 {[%clk 0:00:58]}  Re8+ {[%clk 0:01:28]} 17. Be2 {[%clk 0:00:58]}  Ba6 {[%clk 0:01:29]} 18. Nd4 {[%clk 0:00:37]}  c5 {[%clk 0:01:29]} 19. O-O-O {[%clk 0:00:14]}  cxd4 {[%clk 0:01:18]} 20. Rxd4 {[%clk 0:00:14]}  Qb6 {[%clk 0:01:10]} 21. Bxg4 {[%clk 0:00:10]}  Re5 {[%clk 0:00:58]} 22. Bd7 {[%clk 0:00:07]}  Rc5 {[%clk 0:00:53]} 23. Qe3 {[%clk 0:00:05]}  Re5 {[%clk 0:00:52]} 24. h6+ {[%clk 0:00:04]}  Kh8 {[%clk 0:00:51]} 25. Qc3 {[%clk 0:00:04]}  Rc5 {[%clk 0:00:51]} 26. Qe3 {[%clk 0:00:04]}  Re5 {[%clk 0:00:51]} 27. Qc3 {[%clk 0:00:03]}  Rd8 {[%clk 0:00:51]} 28. Rhd1 {[%clk 0:00:03]}  Qb8 {[%clk 0:00:47]} 29. Ba4 {[%clk 0:00:03]}  Rc8 {[%clk 0:00:47]} 30. Qb3 {[%clk 0:00:02]}  Bb5 {[%clk 0:00:36]} 31. Qxf7 {[%clk 0:00:02]}  Rxc2+ {[%clk 0:00:24]} 32. Kxc2 {[%clk 0:00:01]}  Re2+ {[%clk 0:00:23]} 33. Kb1 {[%clk 0:00:00]}  Bd3+ {[%clk 0:00:24]} 0-1

[Event "January 2 Early 2024"]
[Site "https://www.chess.com"]
[Date "2024.01.02"]
[Round "6"]
[White "Brankovic, Dejan"]
[Black "Vanek, Tomas"]
[Result "1-0"]
[Board "149"]
[TimeControl "180+1"]
[WhiteFideId "921602"]
[BlackFideId "313459"]
[WhiteElo "2462"]
[BlackElo "2278"]
[WhiteTeam "SRB"]
[BlackTeam "CZE"]
[WhiteClock "0:00:34"]
[BlackClock "0:00:00"]

1. e4 {[%clk 0:03:00]}  c5 {[%clk 0:02:59]} 2. Nf3 {[%clk 0:03:00]}  Nc6 {[%clk 0:02:59]} 3. d4 {[%clk 0:03:00]}  cxd4 {[%clk 0:02:59]} 4. Nxd4 {[%clk 0:03:01]}  Nf6 {[%clk 0:02:59]} 5. Nc3 {[%clk 0:03:01]}  e5 {[%clk 0:02:59]} 6. Ndb5 {[%clk 0:03:00]}  d6 {[%clk 0:02:59]} 7. Bg5 {[%clk 0:03:00]}  a6 {[%clk 0:02:59]} 8. Na3 {[%clk 0:03:01]}  b5 {[%clk 0:02:59]} 9. Bxf6 {[%clk 0:03:01]}  gxf6 {[%clk 0:02:58]} 10. Nd5 {[%clk 0:03:02]}  Bg7 {[%clk 0:02:59]} 11. c3 {[%clk 0:03:02]}  f5 {[%clk 0:02:58]} 12. exf5 {[%clk 0:02:51]}  Bxf5 {[%clk 0:02:56]} 13. Bd3 {[%clk 0:02:50]}  e4 {[%clk 0:02:50]} 14. Be2 {[%clk 0:02:45]}  O-O {[%clk 0:02:47]} 15. Nc2 {[%clk 0:02:43]}  Ne5 {[%clk 0:02:37]} 16. O-O {[%clk 0:02:40]}  Qg5 {[%clk 0:02:30]} 17. Kh1 {[%clk 0:02:33]}  Rae8 {[%clk 0:02:25]} 18. Qc1 {[%clk 0:02:15]}  Qh4 {[%clk 0:02:16]} 19. Qf4 {[%clk 0:02:14]}  Qxf4 {[%clk 0:02:06]} 20. Nxf4 {[%clk 0:02:14]}  Bc8 {[%clk 0:02:00]} 21. Rad1 {[%clk 0:02:10]}  Rd8 {[%clk 0:01:55]} 22. Ne3 {[%clk 0:02:01]}  b4 {[%clk 0:01:42]} 23. cxb4 {[%clk 0:01:58]}  Nc6 {[%clk 0:01:42]} 24. Nfd5 {[%clk 0:01:46]}  Bxb2 {[%clk 0:01:39]} 25. a4 {[%clk 0:01:45]}  Nd4 {[%clk 0:01:30]} 26. Bc4 {[%clk 0:01:38]}  Ne6 {[%clk 0:01:10]} 27. Ne7+ {[%clk 0:01:37]}  Kh8 {[%clk 0:01:06]} 28. Nxc8 {[%clk 0:01:37]}  Rxc8 {[%clk 0:01:03]} 29. Bxa6 {[%clk 0:01:38]}  Rb8 {[%clk 0:01:01]} 30. Nd5 {[%clk 0:01:23]}  f5 {[%clk 0:00:51]} 31. Bc4 {[%clk 0:01:15]}  f4 {[%clk 0:00:46]} 32. a5 {[%clk 0:01:15]}  f3 {[%clk 0:00:45]} 33. a6 {[%clk 0:01:13]}  fxg2+ {[%clk 0:00:42]} 34. Kxg2 {[%clk 0:01:12]}  Rg8+ {[%clk 0:00:40]} 35. Kh1 {[%clk 0:01:11]}  Ng5 {[%clk 0:00:38]} 36. Rg1 {[%clk 0:01:00]}  Nf3 {[%clk 0:00:37]} 37. Rg3 {[%clk 0:00:59]}  Rg5 {[%clk 0:00:25]} 38. Rxg5 {[%clk 0:00:53]}  Nxg5 {[%clk 0:00:24]} 39. b5 {[%clk 0:00:54]}  Rg8 {[%clk 0:00:18]} 40. Rg1 {[%clk 0:00:52]}  Bd4 {[%clk 0:00:14]} 41. Rg2 {[%clk 0:00:35]}  h6 {[%clk 0:00:00]} 42. b6 {[%clk 0:00:34]} 1-0

[Event "January 2 Early 2024"]
[Site "https://www.chess.com"]
[Date "2024.01.02"]
[Round "6"]
[White "Daurimbetov, Azamat"]
[Black "Shinkarev, M"]
[Result "0-1"]
[Board "152"]
[TimeControl "180+1"]
[WhiteFideId "14201950"]
[BlackFideId "4145348"]
[WhiteElo "2244"]
[BlackElo "2445"]
[WhiteTeam "UZB"]
[BlackTeam "RUS"]
[WhiteClock "0:00:00"]
[BlackClock "0:00:43"]

1. e4 {[%clk 0:02:59]}  e5 {[%clk 0:02:59]} 2. Nf3 {[%clk 0:02:59]}  d6 {[%clk 0:02:59]} 3. d4 {[%clk 0:02:58]}  Nd7 {[%clk 0:03:00]} 4. Nc3 {[%clk 0:02:56]}  c6 {[%clk 0:03:00]} 5. a4 {[%clk 0:02:55]}  Be7 {[%clk 0:03:01]} 6. Bc4 {[%clk 0:02:55]}  Ngf6 {[%clk 0:03:01]} 7. O-O {[%clk 0:02:54]}  O-O {[%clk 0:03:01]} 8. h3 {[%clk 0:02:55]}  Nxe4 {[%clk 0:03:01]} 9. Nxe4 {[%clk 0:02:54]}  d5 {[%clk 0:03:02]} 10. Bd3 {[%clk 0:02:52]}  dxe4 {[%clk 0:03:01]} 11. Bxe4 {[%clk 0:02:53]}  Nf6 {[%clk 0:03:02]} 12. Qe2 {[%clk 0:02:38]}  exd4 {[%clk 0:02:59]} 13. Rd1 {[%clk 0:02:35]}  c5 {[%clk 0:02:56]} 14. c3 {[%clk 0:02:33]}  Nxe4 {[%clk 0:02:47]} 15. Qxe4 {[%clk 0:02:33]}  Bf6 {[%clk 0:02:48]} 16. cxd4 {[%clk 0:02:30]}  cxd4 {[%clk 0:02:49]} 17. Nxd4 {[%clk 0:02:27]}  Re8 {[%clk 0:02:48]} 18. Qd3 {[%clk 0:02:06]}  Qb6 {[%clk 0:02:24]} 19. Be3 {[%clk 0:02:00]}  Rd8 {[%clk 0:02:01]} 20. Qb5 {[%clk 0:00:49]}  Bd7 {[%clk 0:01:47]} 21. Qxb6 {[%clk 0:00:44]}  axb6 {[%clk 0:01:48]} 22. b3 {[%clk 0:00:37]}  b5 {[%clk 0:01:43]} 23. axb5 {[%clk 0:00:30]}  Rxa1 {[%clk 0:01:37]} 24. Rxa1 {[%clk 0:00:30]}  Bxb5 {[%clk 0:01:36]} 25. Ra7 {[%clk 0:00:20]}  Ba6 {[%clk 0:01:29]} 26. Nc6 {[%clk 0:00:16]}  Rd1+ {[%clk 0:01:22]} 27. Kh2 {[%clk 0:00:16]}  h6 {[%clk 0:01:22]} 28. Nb4 {[%clk 0:00:11]}  Rd6 {[%clk 0:00:57]} 29. Nxa6 {[%clk 0:00:03]}  bxa6 {[%clk 0:00:58]} 30. Ra8+ {[%clk 0:00:02]}  Kh7 {[%clk 0:00:58]} 31. Kg3 {[%clk 0:00:03]}  Rc6 {[%clk 0:00:57]} 32. Kf3 {[%clk 0:00:03]}  Bc3 {[%clk 0:00:55]} 33. Ke4 {[%clk 0:00:03]}  a5 {[%clk 0:00:54]} 34. Kd5 {[%clk 0:00:03]}  Rg6 {[%clk 0:00:52]} 35. g4 {[%clk 0:00:03]}  Bb4 {[%clk 0:00:52]} 36. Kc4 {[%clk 0:00:03]}  Rc6+ {[%clk 0:00:51]} 37. Kb5 {[%clk 0:00:03]}  Rc3 {[%clk 0:00:51]} 38. Bb6 {[%clk 0:00:02]}  Rxb3 {[%clk 0:00:50]} 39. Ka4 {[%clk 0:00:01]}  Ra3+ {[%clk 0:00:50]} 40. Kb5 {[%clk 0:00:02]}  Ra2 {[%clk 0:00:50]} 41. Ra6 {[%clk 0:00:01]}  Re2 {[%clk 0:00:48]} 42. Bxa5 {[%clk 0:00:01]}  Bxa5 {[%clk 0:00:46]} 43. Rxa5 {[%clk 0:00:01]}  Rxf2 {[%clk 0:00:46]} 44. Ra3 {[%clk 0:00:01]}  f5 {[%clk 0:00:45]} 45. gxf5 {[%clk 0:00:01]}  Rxf5+ {[%clk 0:00:46]} 46. Kc6 {[%clk 0:00:01]}  g5 {[%clk 0:00:45]} 47. Kd6 {[%clk 0:00:02]}  Kg6 {[%clk 0:00:45]} 48. Ke6 {[%clk 0:00:02]}  Rf4 {[%clk 0:00:45]} 49. Ke5 {[%clk 0:00:02]}  Rf1 {[%clk 0:00:44]} 50. Ra6+ {[%clk 0:00:02]}  Kh5 {[%clk 0:00:44]} 51. Ke4 {[%clk 0:00:02]}  Rh1 {[%clk 0:00:43]} 52. Ra3 {[%clk 0:00:02]}  Kh4 {[%clk 0:00:43]} 53. Ra6 {[%clk 0:00:00]}  h5 {[%clk 0:00:43]} 0-1

[Event "January 2 Early 2024"]
[Site "https://www.chess.com"]
[Date "2024.01.02"]
[Round "6"]
[White "Micic, Aleksa"]
[Black "Merikard"]
[Result "0-1"]
[Board "153"]
[TimeControl "180+1"]
[WhiteFideId "989940"]
[WhiteElo "2438"]
[BlackElo "2244"]
[WhiteTeam "SRB"]
[WhiteClock "0:00:00"]
[BlackClock "0:00:50"]

1. d4 {[%clk 0:02:56]}  b6 {[%clk 0:02:58]} 2. Nc3 {[%clk 0:02:51]}  Bb7 {[%clk 0:02:57]} 3. Bf4 {[%clk 0:02:52]}  g6 {[%clk 0:02:55]} 4. Qd2 {[%clk 0:02:49]}  Bg7 {[%clk 0:02:55]} 5. O-O-O {[%clk 0:02:50]}  d6 {[%clk 0:02:55]} 6. e3 {[%clk 0:02:48]}  a6 {[%clk 0:02:55]} 7. f3 {[%clk 0:02:46]}  b5 {[%clk 0:02:55]} 8. Kb1 {[%clk 0:02:44]}  Nd7 {[%clk 0:02:55]} 9. h4 {[%clk 0:02:44]}  h6 {[%clk 0:02:55]} 10. Bd3 {[%clk 0:02:40]}  e6 {[%clk 0:02:54]} 11. g4 {[%clk 0:02:34]}  Ne7 {[%clk 0:02:54]} 12. Nce2 {[%clk 0:02:31]}  Nb6 {[%clk 0:02:51]} 13. e4 {[%clk 0:02:30]}  Nc4 {[%clk 0:02:43]} 14. Bxc4 {[%clk 0:02:27]}  bxc4 {[%clk 0:02:43]} 15. Qb4 {[%clk 0:02:28]}  Rb8 {[%clk 0:02:42]} 16. Qxc4 {[%clk 0:02:26]}  O-O {[%clk 0:02:20]} 17. Qd3 {[%clk 0:02:14]}  Qd7 {[%clk 0:02:10]} 18. Qe3 {[%clk 0:02:12]}  Kh7 {[%clk 0:02:10]} 19. Ng3 {[%clk 0:02:06]}  Qb5 {[%clk 0:02:07]} 20. N1e2 {[%clk 0:02:05]}  Bxe4 {[%clk 0:02:02]} 21. b3 {[%clk 0:02:03]}  Bc6 {[%clk 0:01:54]} 22. Nc3 {[%clk 0:01:58]}  Qa5 {[%clk 0:01:53]} 23. Rhg1 {[%clk 0:01:49]}  Nd5 {[%clk 0:01:47]} 24. Nxd5 {[%clk 0:01:47]}  Bxd5 {[%clk 0:01:48]} 25. g5 {[%clk 0:01:41]}  h5 {[%clk 0:01:27]} 26. Ne4 {[%clk 0:01:41]}  Bxe4 {[%clk 0:01:24]} 27. fxe4 {[%clk 0:01:39]}  Qa3 {[%clk 0:01:20]} 28. Qc1 {[%clk 0:01:30]}  Qa5 {[%clk 0:01:17]} 29. Qd2 {[%clk 0:01:23]}  Qb6 {[%clk 0:01:15]} 30. a4 {[%clk 0:01:15]}  a5 {[%clk 0:01:12]} 31. Rgf1 {[%clk 0:01:05]}  Qc6 {[%clk 0:01:11]} 32. Ka2 {[%clk 0:00:56]}  Qxe4 {[%clk 0:01:10]} 33. Rfe1 {[%clk 0:00:51]}  Qc6 {[%clk 0:01:08]} 34. Re2 {[%clk 0:00:41]}  Rb4 {[%clk 0:01:08]} 35. c3 {[%clk 0:00:19]}  Rxa4+ {[%clk 0:01:03]} 36. bxa4 {[%clk 0:00:19]}  Qxa4+ {[%clk 0:01:03]} 37. Kb1 {[%clk 0:00:07]}  Rb8+ {[%clk 0:01:02]} 38. Kc1 {[%clk 0:00:07]}  Qa3+ {[%clk 0:00:58]} 39. Kc2 {[%clk 0:00:07]}  Rb2+ {[%clk 0:00:58]} 40. Kd3 {[%clk 0:00:08]}  Rxd2+ {[%clk 0:00:58]} 41. Rexd2 {[%clk 0:00:08]}  Qb3 {[%clk 0:00:55]} 42. Rc2 {[%clk 0:00:06]}  c5 {[%clk 0:00:55]} 43. dxc5 {[%clk 0:00:06]}  dxc5 {[%clk 0:00:54]} 44. Be3 {[%clk 0:00:02]}  Qd5+ {[%clk 0:00:53]} 45. Ke2 {[%clk 0:00:02]}  Qg2+ {[%clk 0:00:51]} 46. Bf2 {[%clk 0:00:00]}  Qe4+ {[%clk 0:00:50]} 0-1

[Event "January 2 Early 2024"]
[Site "https://www.chess.com"]
[Date "2024.01.02"]
[Round "6"]
[White "RaneshRatnesan"]
[Black "Jovic, Stanoje"]
[Result "1-0"]
[Board "155"]
[TimeControl "180+1"]
[BlackFideId "905020"]
[WhiteElo "2232"]
[BlackElo "2432"]
[BlackTeam "SRB"]
[WhiteClock "0:00:15"]
[BlackClock "0:00:00"]

1. d4 {[%clk 0:03:00]}  Nf6 {[%clk 0:02:59]} 2. c4 {[%clk 0:02:59]}  e6 {[%clk 0:02:59]} 3. Nc3 {[%clk 0:02:59]}  Bb4 {[%clk 0:02:59]} 4. a3 {[%clk 0:03:00]}  Bxc3+ {[%clk 0:02:58]} 5. bxc3 {[%clk 0:03:01]}  O-O {[%clk 0:02:58]} 6. f3 {[%clk 0:03:00]}  c5 {[%clk 0:02:56]} 7. e4 {[%clk 0:02:57]}  d5 {[%clk 0:02:53]} 8. cxd5 {[%clk 0:02:55]}  exd5 {[%clk 0:02:52]} 9. e5 {[%clk 0:02:54]}  Nfd7 {[%clk 0:02:52]} 10. f4 {[%clk 0:02:29]}  Nc6 {[%clk 0:02:50]} 11. Nf3 {[%clk 0:02:29]}  f6 {[%clk 0:02:48]} 12. Bd3 {[%clk 0:02:27]}  fxe5 {[%clk 0:02:43]} 13. fxe5 {[%clk 0:02:27]}  cxd4 {[%clk 0:02:37]} 14. cxd4 {[%clk 0:02:26]}  Rxf3 {[%clk 0:02:14]} 15. Qxf3 {[%clk 0:02:10]}  Qh4+ {[%clk 0:02:14]} 16. Qf2 {[%clk 0:02:00]}  Qxf2+ {[%clk 0:02:10]} 17. Kxf2 {[%clk 0:02:01]}  Nxd4 {[%clk 0:02:10]} 18. Bb2 {[%clk 0:01:58]}  Ne6 {[%clk 0:01:45]} 19. Rad1 {[%clk 0:01:47]}  b6 {[%clk 0:01:37]} 20. Rhe1 {[%clk 0:01:45]}  Ndc5 {[%clk 0:01:33]} 21. Be2 {[%clk 0:01:30]}  Bb7 {[%clk 0:01:25]} 22. Bf3 {[%clk 0:01:30]}  Nf4 {[%clk 0:01:14]} 23. Kg3 {[%clk 0:01:24]}  Nfd3 {[%clk 0:01:08]} 24. Re2 {[%clk 0:01:24]}  Kf7 {[%clk 0:01:00]} 25. Bd4 {[%clk 0:01:24]}  Ke6 {[%clk 0:00:46]} 26. Bg4+ {[%clk 0:01:24]}  Ke7 {[%clk 0:00:45]} 27. Red2 {[%clk 0:01:24]}  Ne4+ {[%clk 0:00:40]} 28. Kf3 {[%clk 0:01:20]}  Nxd2+ {[%clk 0:00:36]} 29. Rxd2 {[%clk 0:01:21]}  Nc5 {[%clk 0:00:35]} 30. Rc2 {[%clk 0:01:17]}  Ne6 {[%clk 0:00:32]} 31. Bxe6 {[%clk 0:01:07]}  Kxe6 {[%clk 0:00:32]} 32. Rc7 {[%clk 0:01:05]}  Ba6 {[%clk 0:00:30]} 33. Rxg7 {[%clk 0:01:03]}  h5 {[%clk 0:00:28]} 34. Rg6+ {[%clk 0:01:03]}  Kf7 {[%clk 0:00:25]} 35. Rh6 {[%clk 0:01:03]}  Rc8 {[%clk 0:00:22]} 36. Rh7+ {[%clk 0:01:01]}  Ke6 {[%clk 0:00:21]} 37. Rh6+ {[%clk 0:00:59]}  Kf7 {[%clk 0:00:20]} 38. Rh7+ {[%clk 0:01:00]}  Ke6 {[%clk 0:00:21]} 39. Rxa7 {[%clk 0:01:00]}  Bd3 {[%clk 0:00:20]} 40. g3 {[%clk 0:00:49]}  Be4+ {[%clk 0:00:19]} 41. Kf4 {[%clk 0:00:49]}  Rf8+ {[%clk 0:00:19]} 42. Kg5 {[%clk 0:00:50]}  Rf3 {[%clk 0:00:18]} 43. Kxh5 {[%clk 0:00:47]}  Rd3 {[%clk 0:00:17]} 44. Bxb6 {[%clk 0:00:45]}  d4 {[%clk 0:00:18]} 45. Ba5 {[%clk 0:00:30]}  Kxe5 {[%clk 0:00:16]} 46. Re7+ {[%clk 0:00:26]}  Kd5 {[%clk 0:00:15]} 47. Rd7+ {[%clk 0:00:25]}  Ke5 {[%clk 0:00:16]} 48. Bb6 {[%clk 0:00:23]}  Rd2 {[%clk 0:00:14]} 49. Rxd4 {[%clk 0:00:20]}  Rxd4 {[%clk 0:00:13]} 50. Bxd4+ {[%clk 0:00:20]}  Kxd4 {[%clk 0:00:13]} 51. Kg5 {[%clk 0:00:20]}  Ke5 {[%clk 0:00:11]} 52. h4 {[%clk 0:00:18]}  Bc2 {[%clk 0:00:09]} 53. h5 {[%clk 0:00:17]}  Ke6 {[%clk 0:00:09]} 54. Kh6 {[%clk 0:00:16]}  Bf5 {[%clk 0:00:00]} 55. Kg7 {[%clk 0:00:15]} 1-0

[Event "January 2 Early 2024"]
[Site "https://www.chess.com"]
[Date "2024.01.02"]
[Round "6"]
[White "Bulatova, Kamaliya"]
[Black "Lye, Sverre"]
[Result "1-0"]
[Board "156"]
[TimeControl "180+1"]
[WhiteFideId "34111546"]
[BlackFideId "1539353"]
[WhiteElo "2430"]
[BlackElo "2224"]
[WhiteTeam "RUS"]
[BlackTeam "NOR"]
[WhiteClock "0:00:06"]
[BlackClock "0:00:16"]

1. d4 {[%clk 0:03:00]}  Nf6 {[%clk 0:02:59]} 2. c4 {[%clk 0:02:58]}  g6 {[%clk 0:02:58]} 3. Nc3 {[%clk 0:02:58]}  d6 {[%clk 0:02:58]} 4. h4 {[%clk 0:02:57]}  h5 {[%clk 0:02:57]} 5. e4 {[%clk 0:02:56]}  Bg7 {[%clk 0:02:57]} 6. Be2 {[%clk 0:02:54]}  Nbd7 {[%clk 0:02:57]} 7. Bg5 {[%clk 0:02:49]}  e5 {[%clk 0:02:56]} 8. d5 {[%clk 0:02:48]}  a5 {[%clk 0:02:55]} 9. Qd2 {[%clk 0:02:43]}  Nc5 {[%clk 0:02:52]} 10. f3 {[%clk 0:02:43]}  Qd7 {[%clk 0:02:35]} 11. Nh3 {[%clk 0:02:40]}  Na4 {[%clk 0:02:34]} 12. Nb5 {[%clk 0:02:35]}  Nc5 {[%clk 0:02:22]} 13. Nf2 {[%clk 0:02:27]}  b6 {[%clk 0:02:22]} 14. Nd3 {[%clk 0:02:19]}  Ba6 {[%clk 0:02:20]} 15. Nxc5 {[%clk 0:02:19]}  dxc5 {[%clk 0:02:17]} 16. Qc3 {[%clk 0:02:03]}  Qe7 {[%clk 0:02:06]} 17. Na3 {[%clk 0:01:31]}  Qd6 {[%clk 0:02:02]} 18. Be3 {[%clk 0:01:20]}  Nd7 {[%clk 0:01:58]} 19. Nc2 {[%clk 0:01:12]}  f5 {[%clk 0:01:55]} 20. exf5 {[%clk 0:01:09]}  gxf5 {[%clk 0:01:56]} 21. Bg5 {[%clk 0:00:55]}  Qg6 {[%clk 0:01:36]} 22. O-O {[%clk 0:00:38]}  Bf6 {[%clk 0:01:29]} 23. Qe3 {[%clk 0:00:31]}  Rg8 {[%clk 0:01:24]} 24. f4 {[%clk 0:00:29]}  O-O-O {[%clk 0:01:15]} 25. Rad1 {[%clk 0:00:19]}  exf4 {[%clk 0:01:13]} 26. Qxf4 {[%clk 0:00:18]}  Bxg5 {[%clk 0:01:10]} 27. hxg5 {[%clk 0:00:18]}  Qxg5 {[%clk 0:01:09]} 28. Qxg5 {[%clk 0:00:18]}  Rxg5 {[%clk 0:01:10]} 29. Ne3 {[%clk 0:00:17]}  Rdg8 {[%clk 0:01:09]} 30. Rf2 {[%clk 0:00:16]}  Ne5 {[%clk 0:01:04]} 31. Nxf5 {[%clk 0:00:16]}  Kb8 {[%clk 0:00:55]} 32. b3 {[%clk 0:00:15]}  Bc8 {[%clk 0:00:53]} 33. Ne7 {[%clk 0:00:15]}  Re8 {[%clk 0:00:49]} 34. Nxc8 {[%clk 0:00:12]}  Kxc8 {[%clk 0:00:45]} 35. Kh2 {[%clk 0:00:12]}  Ng4+ {[%clk 0:00:44]} 36. Bxg4+ {[%clk 0:00:11]}  hxg4 {[%clk 0:00:44]} 37. g3 {[%clk 0:00:10]}  Rh5+ {[%clk 0:00:42]} 38. Kg2 {[%clk 0:00:11]}  Re3 {[%clk 0:00:38]} 39. d6 {[%clk 0:00:06]}  cxd6 {[%clk 0:00:21]} 40. Rxd6 {[%clk 0:00:06]}  Kc7 {[%clk 0:00:21]} 41. Rg6 {[%clk 0:00:06]}  Re4 {[%clk 0:00:17]} 42. Rf7+ {[%clk 0:00:05]}  Kb8 {[%clk 0:00:15]} 43. Rg8+ {[%clk 0:00:06]}  Re8 {[%clk 0:00:16]} 44. Rxe8# {[%clk 0:00:06]} 1-0

[Event "January 2 Early 2024"]
[Site "https://www.chess.com"]
[Date "2024.01.02"]
[Round "6"]
[White "Kohler, Aran"]
[Black "Gabdushev, Ruslan"]
[Result "1-0"]
[Board "157"]
[TimeControl "180+1"]
[WhiteFideId "1002856"]
[BlackFideId "4137833"]
[WhiteElo "2222"]
[BlackElo "2430"]
[WhiteTeam "NED"]
[BlackTeam "RUS"]
[WhiteClock "0:01:14"]
[BlackClock "0:00:00"]

1. d4 {[%clk 0:03:00]}  g6 {[%clk 0:02:58]} 2. c3 {[%clk 0:02:59]}  Bg7 {[%clk 0:02:58]} 3. Nf3 {[%clk 0:03:00]}  d6 {[%clk 0:02:57]} 4. Bg5 {[%clk 0:03:00]}  c6 {[%clk 0:02:56]} 5. Nbd2 {[%clk 0:03:00]}  h6 {[%clk 0:02:55]} 6. Bh4 {[%clk 0:02:59]}  g5 {[%clk 0:02:52]} 7. Bg3 {[%clk 0:02:59]}  Nd7 {[%clk 0:02:51]} 8. e3 {[%clk 0:02:58]}  Nf8 {[%clk 0:02:51]} 9. Bd3 {[%clk 0:02:57]}  Nf6 {[%clk 0:02:48]} 10. h4 {[%clk 0:02:55]}  g4 {[%clk 0:02:46]} 11. Nh2 {[%clk 0:02:56]}  Nh5 {[%clk 0:02:35]} 12. Nxg4 {[%clk 0:02:55]}  Nxg3 {[%clk 0:02:33]} 13. fxg3 {[%clk 0:02:56]}  h5 {[%clk 0:02:29]} 14. Nf2 {[%clk 0:02:54]}  Nd7 {[%clk 0:02:18]} 15. O-O {[%clk 0:02:54]}  Nf6 {[%clk 0:02:17]} 16. Nde4 {[%clk 0:02:52]}  d5 {[%clk 0:02:11]} 17. Ng5 {[%clk 0:02:51]}  Qc7 {[%clk 0:02:05]} 18. Qf3 {[%clk 0:02:51]}  Bh6 {[%clk 0:02:00]} 19. e4 {[%clk 0:02:46]}  Be6 {[%clk 0:01:46]} 20. Nxe6 {[%clk 0:02:41]}  fxe6 {[%clk 0:01:44]} 21. e5 {[%clk 0:02:41]}  Ng4 {[%clk 0:01:33]} 22. Nxg4 {[%clk 0:02:25]}  hxg4 {[%clk 0:01:32]} 23. Bg6+ {[%clk 0:02:17]}  Kd7 {[%clk 0:01:31]} 24. Qxg4 {[%clk 0:02:17]}  Rag8 {[%clk 0:01:17]} 25. Rf7 {[%clk 0:02:11]}  c5 {[%clk 0:01:08]} 26. Raf1 {[%clk 0:02:10]}  Be3+ {[%clk 0:01:04]} 27. Kh2 {[%clk 0:02:09]}  cxd4 {[%clk 0:01:04]} 28. cxd4 {[%clk 0:02:09]}  Qb6 {[%clk 0:01:04]} 29. h5 {[%clk 0:01:55]}  Bxd4 {[%clk 0:00:57]} 30. Rd1 {[%clk 0:01:52]}  Bxe5 {[%clk 0:00:51]} 31. Rxd5+ {[%clk 0:01:51]}  Bd6 {[%clk 0:00:51]} 32. Rd2 {[%clk 0:01:47]}  Qc5 {[%clk 0:00:45]} 33. Qh4 {[%clk 0:01:33]}  Kc8 {[%clk 0:00:10]} 34. Rc2 {[%clk 0:01:26]}  Qxc2 {[%clk 0:00:10]} 35. Bxc2 {[%clk 0:01:25]}  Bxg3+ {[%clk 0:00:06]} 36. Qxg3 {[%clk 0:01:23]}  Rxh5+ {[%clk 0:00:05]} 37. Qh3 {[%clk 0:01:22]}  Rxh3+ {[%clk 0:00:05]} 38. Kxh3 {[%clk 0:01:20]}  Kd7 {[%clk 0:00:06]} 39. g4 {[%clk 0:01:20]}  Kd6 {[%clk 0:00:05]} 40. Bb3 {[%clk 0:01:19]}  Rh8+ {[%clk 0:00:02]} 41. Kg3 {[%clk 0:01:17]}  Rh1 {[%clk 0:00:02]} 42. Rf2 {[%clk 0:01:16]}  Rg1+ {[%clk 0:00:01]} 43. Kf4 {[%clk 0:01:15]}  e5+ {[%clk 0:00:00]} 44. Kf5 {[%clk 0:01:14]} 1-0